{"text_format":"1","workbook":"xlsx","n_sheets":6,"sheets":["Dashboard","Data","Calculations","Flags","Best","Players"],"not_rendered":{"charts":0,"images":30,"macros":1,"external_links":0,"defined_names":11,"comments":0,"pivot_tables":0},"unopened":[],"bounds":{"document_bytes":16777216,"sheet_cells":100000,"rows_first":2000,"rows_last":500,"rows_between":2000,"halvings":0,"cell_chars":16384,"cell_head_chars":4096},"cells_cut":0,"cells_raw":0,"read":"whole","date_system":"1900"}

{"sheet":"Dashboard","index":0,"n_rows":44,"n_cols":14,"rows_kept":44,"cut":false,"hidden":false,"merged":[[20,3,20,4],[21,3,21,4],[22,3,22,4],[23,3,23,4],[15,3,15,4],[16,3,16,4],[17,3,17,4],[18,3,18,4],[19,3,19,4],[8,7,8,8],[9,1,9,2],[9,4,9,5],[9,7,9,8],[14,5,14,11],[41,3,41,4],[42,3,42,4],[0,13,0,14],[27,10,27,11],[1,1,1,12],[6,1,6,2],[7,1,7,2],[8,1,8,2],[6,4,6,5],[7,4,7,5],[8,4,8,5],[6,10,6,11],[7,10,7,11],[8,10,9,11],[6,7,6,8],[7,7,7,8]]}
[null,null,null,null,null,null,null,null,null,null,null,null,null,"View credits & info."]
[]
[]
[null,"It took us…,"]
[]
[]
[null,{"$f":"Calculations!G9","v":"9 matches"},null,null,{"$f":"Calculations!G5","v":"2471 runs"},null,null,{"$f":"Calculations!G8","v":"62 wickets lost"},null,null,{"$f":"Calculations!G15","v":"57 sixes"}]
[null,{"$f":"Calculations!$G$17","v":"in 8 venues"},null,null,{"$f":"Calculations!G16","v":"2564 balls faced"},null,null,{"$f":"Calculations!G11","v":"16 players"},null,null,{"$f":"Calculations!G14","v":"235 fours"}]
[null,{"$f":"Calculations!G10","v":"7 won"},null,null,{"$f":"Calculations!G12","v":"5 centuries"},null,null,{"$f":"Calculations!G7","v":"We took 76 wickets"},null,null,{"$f":"Calculations!I15","v":"2/3rd sixes by Sachin, Sehwag & Yuvraj"}]
[null,{"$f":"Calculations!$G$19","v":"We  batted first 6 times"},null,null,{"$f":"Calculations!G13","v":"and 13 half-centuries"},null,null,{"$f":"Calculations!$G$18","v":"in 437 overs bowled"}]
[]
[]
[null,"The journey…,"]
[]
[null,"Date","With","Result"]
[null,{"$f":"Data!C4","v":"2011-02-19"},{"$f":"Data!G4","v":"Bangladesh"},{"$f":"Calculations!C39","v":"India won"}]
[null,{"$f":"Data!C5","v":"2011-02-27"},{"$f":"Data!G5","v":"England"},{"$f":"Calculations!C40","v":"Match tied"}]
[null,{"$f":"Data!C6","v":"2011-03-06"},{"$f":"Data!G6","v":"Ireland"},{"$f":"Calculations!C41","v":"India won"}]
[null,{"$f":"Data!C7","v":"2011-03-09"},{"$f":"Data!G7","v":"Netherlands"},{"$f":"Calculations!C42","v":"India won"}]
[null,{"$f":"Data!C8","v":"2011-03-12"},{"$f":"Data!G8","v":"South Africa"},{"$f":"Calculations!C43","v":"South Africa won"}]
[null,{"$f":"Data!C9","v":"2011-03-20"},{"$f":"Data!G9","v":"West Indies"},{"$f":"Calculations!C44","v":"India won"}]
[null,{"$f":"Data!C10","v":"2011-03-24"},{"$f":"Data!G10","v":"Australia"},{"$f":"Calculations!C45","v":"India won"}]
[null,{"$f":"Data!C11","v":"2011-03-30"},{"$f":"Data!G11","v":"Pakistan"},{"$f":"Calculations!C46","v":"India won"}]
[null,{"$f":"Data!C12","v":"2011-04-02"},{"$f":"Data!G12","v":"Sri Lanka"},{"$f":"Calculations!C47","v":"India won"}]
[]
[null,"The best…,"]
[]
[null,"BATTING",null,null,"BOWLING",null,null,"CATCHES",null,null,"PARTNERSHIPS"]
[]
[]
[]
[]
[]
[]
[]
[]
[]
[]
[]
[null,"Credits…,"]
[]
[null,"All data & pictures from:",null,"http://espncricinfo.com"]
[null,"Dashboard Prepared by:",null,"http://chandoo.org/wp/"]
[null,"Special thanks to Ravindra, my assistant for compiling the data."]

{"sheet":"Data","index":1,"n_rows":181,"n_cols":29,"rows_kept":181,"cut":false,"hidden":false,"merged":[]}
[]
[null,null,null,null,null,null,null,"India Score",null,null,"Opposition Score",null,null,null,null,null,null,"India",null,null,null,null,null,"Opposition"]
["Result",null,"Date of Match","Round","Venue (Stadium Name)","Location (City)","with whom (country)","Score","Wickets","Overs Played","Score","Wickets","Overs Played","Who Won the Toss","Who batted first","Match Result (WON / LOST / TIED)","Man of the Match","Sixes","Fours","High Scorer","Highest Score","Highest Wicket Taker","Highest Wickets","Sixes","Fours","High Scorer","Highest Score","Highest Wicket Taker","Highest Wickets"]
["India won by 87 runs",1,"2011-02-19","Group B","Shere Bangla National Stadium","Mirpur  ","Bangladesh",370,4,50,283,9,50,"Bangladesh","India","WON","Virender Sehwag (vc)",7,29,"Virender Sehwag (vc)",175,"Munaf Patel",4,3,18,"Tamim Iqbal",70,"Shafiul Islam",1]
["Match tied",2,"2011-02-27","Group B","M Chinnaswamy Stadium","Bangalore  ","England",338,10,49.5,338,8,50,"India","India","TIED","AJ Strauss",7,35,"Sachin Tendulkar",120,"Zaheer Khan",3,5,29,"AJ Strauss",158,"TT Bresnan",5]
["India won by 3 runs",3,"2011-03-06","Group B","M Chinnaswamy Stadium","Bangalore  ","Ireland",210,5,46,207,10,47.5,"India","India","WON","Yuvraj Singh",3,17,"Yuvraj Singh",50,"Yuvraj Singh",5,1,16,"WTS Porterfield",75,"DT Johnston",2]
["India won by 5 wickets",4,"2011-03-09","Group B","Feroz Shah Kotla","Delhi  ","Netherlands",191,5,36.299999999999997,189,10,46.4,"Netherlands","Netherlands","WON","Yuvraj Singh",3,26,"Yuvraj Singh",51,"Zaheer Khan",3,4,15,"PW Borren",38,"PM Seelaar",3]
["South Africa won by 3 wickets",5,"2011-03-12","Group B","VCA Stadium","Nagpur  ","South Africa",296,10,48.4,300,7,49.4,"India","India","LOST","DW Steyn",4,27,"Sachin Tendulkar",111,"Harbhajan Singh",3,5,24,"JH Kallis",69,"DW Steyn",5]
["India won by 80 runs",6,"2011-03-20","Group B","MAC Stadium","Chennai  ","West Indies",268,10,49.1,188,10,43,"India","India","WON","Yuvraj Singh",2,23,"Yuvraj Singh",113,"Zaheer Khan",3,3,13,"DS Smith",81,"R Rampaul",5]
["India won by 5 wickets",7,"2011-03-24","Quarter-Final","Sardar Patel Stadium","Motera","Australia",261,5,47.4,260,6,50,"Australia","Australia","WON","Yuvraj Singh",1,23,"Yuvraj Singh",57,"Ravichandran Ashwin",2,3,21,"RT Ponting",104,"B Lee",1]
["India won by 29 runs",8,"2011-03-30","Semi-Final","PCA Stadium","Mohali","Pakistan",260,9,50,231,10,49.5,"India","India","WON","Sachin Tendulkar",0,30,"Sachin Tendulkar",85,"Zaheer Khan",2,3,20,"Misbah-ul-Haq",56,"Wahab Riaz",5]
["India won by 6 wickets",9,"2011-04-02","Final","Wankhede Stadium","Mumbai  ","Sri Lanka",277,4,48.2,274,6,50,"Sri Lanka","Sri Lanka","WON","MS Dhoni (c/wk)",2,35,"Gautam Gambhir",97,"Zaheer Khan",2,2,27,"DPMD Jayawardene",103,"SL Malinga",2]
[null,null,null,null,null,null,null,null,null,null,null,null,{"$f":"SUM(INT(M4:M12))","v":434}]
[null,null,null,null,null,null,null,null,null,null,null,null,{"$f":"(SUM(M4:M12)-M13)/0.6","v":3.0000000000000191}]
[null,null,null,null,null,null,null,null,null,null,null,null,{"$f":"M13+M14","v":437}]
[]
[]
[]
[]
[null,null,null,null,"Batting",null,null,null,null,"Bowling"]
[null,null,"Name","Match Date","Runs","4s","6s","Balls faced","Got out (Yes / No)","Wickets","Overs Bowled (round figures only)","Maidens","Runs Given","TopScore Order","Top Wicket Takers","Number","Best?"]
[null,null,"MS Dhoni (c/wk)","2011-02-19",null,null,null,null,null,null,null,null,null,null,null,1,{"$f":"Table1[[#This Row],[TopScore Order]]+Table1[[#This Row],[Top Wicket Takers]]","v":0}]
[null,null,"Virender Sehwag (vc)","2011-02-19",175,14,5,140,"Y",null,null,null,null,1,null,2,{"$f":"Table1[[#This Row],[TopScore Order]]+Table1[[#This Row],[Top Wicket Takers]]","v":1}]
[null,null,"Ravichandran Ashwin","2011-02-19",null,null,null,null,null,null,null,null,null,null,null,3,{"$f":"Table1[[#This Row],[TopScore Order]]+Table1[[#This Row],[Top Wicket Takers]]","v":0}]
[null,null,"Piyush Chawla","2011-02-19",null,null,null,null,null,null,null,null,null,null,null,4,{"$f":"Table1[[#This Row],[TopScore Order]]+Table1[[#This Row],[Top Wicket Takers]]","v":0}]
[null,null,"Gautam Gambhir","2011-02-19",39,3,0,39,"Y",null,null,null,null,3,null,5,{"$f":"Table1[[#This Row],[TopScore Order]]+Table1[[#This Row],[Top Wicket Takers]]","v":3}]
[null,null,"Harbhajan Singh","2011-02-19",null,null,null,null,null,1,10,0,41,null,3,6,{"$f":"Table1[[#This Row],[TopScore Order]]+Table1[[#This Row],[Top Wicket Takers]]","v":3}]
[null,null,"Zaheer Khan","2011-02-19",null,null,null,null,null,2,10,0,40,null,2,7,{"$f":"Table1[[#This Row],[TopScore Order]]+Table1[[#This Row],[Top Wicket Takers]]","v":2}]
[null,null,"Virat Kohli","2011-02-19",100,8,2,83,"N",null,null,null,null,2,null,8,{"$f":"Table1[[#This Row],[TopScore Order]]+Table1[[#This Row],[Top Wicket Takers]]","v":2}]
[null,null,"Ashish Nehra","2011-02-19",null,null,null,null,null,null,null,null,null,null,null,9,{"$f":"Table1[[#This Row],[TopScore Order]]+Table1[[#This Row],[Top Wicket Takers]]","v":0}]
[null,null,"Munaf Patel","2011-02-19",null,null,null,null,null,4,10,0,48,null,1,10,{"$f":"Table1[[#This Row],[TopScore Order]]+Table1[[#This Row],[Top Wicket Takers]]","v":1}]
[null,null,"Yusuf Pathan","2011-02-19",8,0,0,10,"Y",1,8,0,49,null,null,11,{"$f":"Table1[[#This Row],[TopScore Order]]+Table1[[#This Row],[Top Wicket Takers]]","v":0}]
[null,null,"Suresh Raina","2011-02-19",null,null,null,null,null,null,null,null,null,null,null,12,{"$f":"Table1[[#This Row],[TopScore Order]]+Table1[[#This Row],[Top Wicket Takers]]","v":0}]
[null,null,"Sreesanth","2011-02-19",null,null,null,null,null,0,5,0,53,null,null,13,{"$f":"Table1[[#This Row],[TopScore Order]]+Table1[[#This Row],[Top Wicket Takers]]","v":0}]
[null,null,"Sachin Tendulkar","2011-02-19",28,4,0,29,"Y",null,null,null,null,null,null,14,{"$f":"Table1[[#This Row],[TopScore Order]]+Table1[[#This Row],[Top Wicket Takers]]","v":0}]
[null,null,"Yuvraj Singh","2011-02-19",null,null,null,null,null,null,null,null,null,null,null,15,{"$f":"Table1[[#This Row],[TopScore Order]]+Table1[[#This Row],[Top Wicket Takers]]","v":0}]
[null,null,"MS Dhoni (c/wk)","2011-02-27",31,3,3,25,"y",null,null,null,null,null,null,16,{"$f":"Table1[[#This Row],[TopScore Order]]+Table1[[#This Row],[Top Wicket Takers]]","v":0}]
[null,null,"Virender Sehwag (vc)","2011-02-27",35,6,6,26,"y",null,null,null,null,null,null,17,{"$f":"Table1[[#This Row],[TopScore Order]]+Table1[[#This Row],[Top Wicket Takers]]","v":0}]
[null,null,"Ravichandran Ashwin","2011-02-27",null,null,null,null,null,null,null,null,null,null,null,18,{"$f":"Table1[[#This Row],[TopScore Order]]+Table1[[#This Row],[Top Wicket Takers]]","v":0}]
[null,null,"Piyush Chawla","2011-02-27",2,0,0,4,"y",2,10,0,71,null,2,19,{"$f":"Table1[[#This Row],[TopScore Order]]+Table1[[#This Row],[Top Wicket Takers]]","v":2}]
[null,null,"Gautam Gambhir","2011-02-27",51,5,5,61,"y",null,null,null,null,3,null,20,{"$f":"Table1[[#This Row],[TopScore Order]]+Table1[[#This Row],[Top Wicket Takers]]","v":3}]
[null,null,"Harbhajan Singh","2011-02-27",0,0,0,1,"y",1,10,0,58,null,null,21,{"$f":"Table1[[#This Row],[TopScore Order]]+Table1[[#This Row],[Top Wicket Takers]]","v":0}]
[null,null,"Zaheer Khan","2011-02-27",4,0,0,5,"y",3,10,0,64,null,1,22,{"$f":"Table1[[#This Row],[TopScore Order]]+Table1[[#This Row],[Top Wicket Takers]]","v":1}]
[null,null,"Virat Kohli","2011-02-27",8,1,1,5,"y",null,null,null,null,null,null,23,{"$f":"Table1[[#This Row],[TopScore Order]]+Table1[[#This Row],[Top Wicket Takers]]","v":0}]
[null,null,"Ashish Nehra","2011-02-27",null,null,null,null,null,null,null,null,null,null,null,24,{"$f":"Table1[[#This Row],[TopScore Order]]+Table1[[#This Row],[Top Wicket Takers]]","v":0}]
[null,null,"Munaf Patel","2011-02-27",0,0,0,0,"n",2,10,0,70,null,3,25,{"$f":"Table1[[#This Row],[TopScore Order]]+Table1[[#This Row],[Top Wicket Takers]]","v":3}]
[null,null,"Yusuf Pathan","2011-02-27",14,1,1,8,"y",0,3,0,21,null,null,26,{"$f":"Table1[[#This Row],[TopScore Order]]+Table1[[#This Row],[Top Wicket Takers]]","v":0}]
[null,null,"Suresh Raina","2011-02-27",null,null,null,null,null,null,null,null,null,null,null,27,{"$f":"Table1[[#This Row],[TopScore Order]]+Table1[[#This Row],[Top Wicket Takers]]","v":0}]
[null,null,"Sreesanth","2011-02-27",null,null,null,null,null,null,null,null,null,null,null,28,{"$f":"Table1[[#This Row],[TopScore Order]]+Table1[[#This Row],[Top Wicket Takers]]","v":0}]
[null,null,"Sachin Tendulkar","2011-02-27",120,10,10,115,"y",null,null,null,null,1,null,29,{"$f":"Table1[[#This Row],[TopScore Order]]+Table1[[#This Row],[Top Wicket Takers]]","v":1}]
[null,null,"Yuvraj Singh","2011-02-27",58,9,9,50,"y",0,7,0,46,2,null,30,{"$f":"Table1[[#This Row],[TopScore Order]]+Table1[[#This Row],[Top Wicket Takers]]","v":2}]
[null,null,"MS Dhoni (c/wk)","2011-03-06",34,2,0,50,"y",null,null,null,null,null,null,31,{"$f":"Table1[[#This Row],[TopScore Order]]+Table1[[#This Row],[Top Wicket Takers]]","v":0}]
[null,null,"Virender Sehwag (vc)","2011-03-06",5,1,0,3,"y",null,null,null,null,null,null,32,{"$f":"Table1[[#This Row],[TopScore Order]]+Table1[[#This Row],[Top Wicket Takers]]","v":0}]
[null,null,"Ravichandran Ashwin","2011-03-06",null,null,null,null,null,null,null,null,null,null,null,33,{"$f":"Table1[[#This Row],[TopScore Order]]+Table1[[#This Row],[Top Wicket Takers]]","v":0}]
[null,null,"Piyush Chawla","2011-03-06",null,null,null,null,null,0,8,0,56,null,null,34,{"$f":"Table1[[#This Row],[TopScore Order]]+Table1[[#This Row],[Top Wicket Takers]]","v":0}]
[null,null,"Gautam Gambhir","2011-03-06",10,2,0,15,"y",null,null,null,null,null,null,35,{"$f":"Table1[[#This Row],[TopScore Order]]+Table1[[#This Row],[Top Wicket Takers]]","v":0}]
[null,null,"Harbhajan Singh","2011-03-06",null,null,null,null,null,0,9,1,29,null,null,36,{"$f":"Table1[[#This Row],[TopScore Order]]+Table1[[#This Row],[Top Wicket Takers]]","v":0}]
[null,null,"Zaheer Khan","2011-03-06",null,null,null,null,null,3,9,1,30,null,2,37,{"$f":"Table1[[#This Row],[TopScore Order]]+Table1[[#This Row],[Top Wicket Takers]]","v":2}]
[null,null,"Virat Kohli","2011-03-06",34,3,0,53,"y",null,null,null,null,3,null,38,{"$f":"Table1[[#This Row],[TopScore Order]]+Table1[[#This Row],[Top Wicket Takers]]","v":3}]
[null,null,"Ashish Nehra","2011-03-06",null,null,null,null,null,null,null,null,null,null,null,39,{"$f":"Table1[[#This Row],[TopScore Order]]+Table1[[#This Row],[Top Wicket Takers]]","v":0}]
[null,null,"Munaf Patel","2011-03-06",null,null,null,null,null,1,5,0,25,null,3,40,{"$f":"Table1[[#This Row],[TopScore Order]]+Table1[[#This Row],[Top Wicket Takers]]","v":3}]
[null,null,"Yusuf Pathan","2011-03-06",30,2,3,24,"n",0,7,1,32,null,null,41,{"$f":"Table1[[#This Row],[TopScore Order]]+Table1[[#This Row],[Top Wicket Takers]]","v":0}]
[null,null,"Suresh Raina","2011-03-06",null,null,null,null,null,null,null,null,null,null,null,42,{"$f":"Table1[[#This Row],[TopScore Order]]+Table1[[#This Row],[Top Wicket Takers]]","v":0}]
[null,null,"Sreesanth","2011-03-06",null,null,null,null,null,null,null,null,null,null,null,43,{"$f":"Table1[[#This Row],[TopScore Order]]+Table1[[#This Row],[Top Wicket Takers]]","v":0}]
[null,null,"Sachin Tendulkar","2011-03-06",38,4,0,56,"y",null,null,null,null,2,null,44,{"$f":"Table1[[#This Row],[TopScore Order]]+Table1[[#This Row],[Top Wicket Takers]]","v":2}]
[null,null,"Yuvraj Singh","2011-03-06",50,3,0,75,"n",5,10,0,31,1,1,45,{"$f":"Table1[[#This Row],[TopScore Order]]+Table1[[#This Row],[Top Wicket Takers]]","v":2}]
[null,null,"MS Dhoni (c/wk)","2011-03-09",19,2,0,40,"n",null,null,null,null,null,null,46,{"$f":"Table1[[#This Row],[TopScore Order]]+Table1[[#This Row],[Top Wicket Takers]]","v":0}]
[null,null,"Virender Sehwag (vc)","2011-03-09",39,5,2,26,"y",null,null,null,null,2,null,47,{"$f":"Table1[[#This Row],[TopScore Order]]+Table1[[#This Row],[Top Wicket Takers]]","v":2}]
[null,null,"Ravichandran Ashwin","2011-03-09",null,null,null,null,null,null,null,null,null,null,null,48,{"$f":"Table1[[#This Row],[TopScore Order]]+Table1[[#This Row],[Top Wicket Takers]]","v":0}]
[null,null,"Piyush Chawla","2011-03-09",null,null,null,null,null,2,10,0,47,null,3,49,{"$f":"Table1[[#This Row],[TopScore Order]]+Table1[[#This Row],[Top Wicket Takers]]","v":3}]
[null,null,"Gautam Gambhir","2011-03-09",28,3,0,28,"y",null,null,null,null,3,null,50,{"$f":"Table1[[#This Row],[TopScore Order]]+Table1[[#This Row],[Top Wicket Takers]]","v":3}]
[null,null,"Harbhajan Singh","2011-03-09",null,null,null,null,null,0,10,0,31,null,null,51,{"$f":"Table1[[#This Row],[TopScore Order]]+Table1[[#This Row],[Top Wicket Takers]]","v":0}]
[null,null,"Zaheer Khan","2011-03-09",null,null,null,null,null,3,7,0,20,null,1,52,{"$f":"Table1[[#This Row],[TopScore Order]]+Table1[[#This Row],[Top Wicket Takers]]","v":1}]
[null,null,"Virat Kohli","2011-03-09",12,2,0,20,"y",null,null,null,null,null,null,53,{"$f":"Table1[[#This Row],[TopScore Order]]+Table1[[#This Row],[Top Wicket Takers]]","v":0}]
[null,null,"Ashish Nehra","2011-03-09",null,null,null,null,null,1,5,1,22,null,null,54,{"$f":"Table1[[#This Row],[TopScore Order]]+Table1[[#This Row],[Top Wicket Takers]]","v":0}]
[null,null,"Munaf Patel","2011-03-09",null,null,null,null,null,null,null,null,null,null,null,55,{"$f":"Table1[[#This Row],[TopScore Order]]+Table1[[#This Row],[Top Wicket Takers]]","v":0}]
[null,null,"Yusuf Pathan","2011-03-09",11,1,1,10,"y",0,6,1,17,null,null,56,{"$f":"Table1[[#This Row],[TopScore Order]]+Table1[[#This Row],[Top Wicket Takers]]","v":0}]
[null,null,"Suresh Raina","2011-03-09",null,null,null,null,null,null,null,null,null,null,null,57,{"$f":"Table1[[#This Row],[TopScore Order]]+Table1[[#This Row],[Top Wicket Takers]]","v":0}]
[null,null,"Sreesanth","2011-03-09",null,null,null,null,null,null,null,null,null,null,null,58,{"$f":"Table1[[#This Row],[TopScore Order]]+Table1[[#This Row],[Top Wicket Takers]]","v":0}]
[null,null,"Sachin Tendulkar","2011-03-09",27,6,0,22,"y",null,null,null,null,null,null,59,{"$f":"Table1[[#This Row],[TopScore Order]]+Table1[[#This Row],[Top Wicket Takers]]","v":0}]
[null,null,"Yuvraj Singh","2011-03-09",51,7,0,73,"n",2,9,1,43,1,2,60,{"$f":"Table1[[#This Row],[TopScore Order]]+Table1[[#This Row],[Top Wicket Takers]]","v":3}]
[null,null,"MS Dhoni (c/wk)","2011-03-12",12,0,0,21,"n",null,null,null,null,null,null,61,{"$f":"Table1[[#This Row],[TopScore Order]]+Table1[[#This Row],[Top Wicket Takers]]","v":0}]
[null,null,"Virender Sehwag (vc)","2011-03-12",73,12,0,66,"y",null,null,null,null,2,null,62,{"$f":"Table1[[#This Row],[TopScore Order]]+Table1[[#This Row],[Top Wicket Takers]]","v":2}]
[null,null,"Ravichandran Ashwin","2011-03-12",null,null,null,null,null,null,null,null,null,null,null,63,{"$f":"Table1[[#This Row],[TopScore Order]]+Table1[[#This Row],[Top Wicket Takers]]","v":0}]
[null,null,"Piyush Chawla","2011-03-12",null,null,null,null,null,null,null,null,null,null,null,64,{"$f":"Table1[[#This Row],[TopScore Order]]+Table1[[#This Row],[Top Wicket Takers]]","v":0}]
[null,null,"Gautam Gambhir","2011-03-12",69,7,0,75,"y",null,null,null,null,3,null,65,{"$f":"Table1[[#This Row],[TopScore Order]]+Table1[[#This Row],[Top Wicket Takers]]","v":3}]
[null,null,"Harbhajan Singh","2011-03-12",3,0,0,9,"y",3,9,0,53,null,1,66,{"$f":"Table1[[#This Row],[TopScore Order]]+Table1[[#This Row],[Top Wicket Takers]]","v":1}]
[null,null,"Zaheer Khan","2011-03-12",0,0,0,3,"y",1,10,0,43,null,2,67,{"$f":"Table1[[#This Row],[TopScore Order]]+Table1[[#This Row],[Top Wicket Takers]]","v":2}]
[null,null,"Virat Kohli","2011-03-12",1,0,0,3,"y",null,null,null,null,null,null,68,{"$f":"Table1[[#This Row],[TopScore Order]]+Table1[[#This Row],[Top Wicket Takers]]","v":0}]
[null,null,"Ashish Nehra","2011-03-12",0,0,0,3,"y",0,9,0,65,null,null,69,{"$f":"Table1[[#This Row],[TopScore Order]]+Table1[[#This Row],[Top Wicket Takers]]","v":0}]
[null,null,"Munaf Patel","2011-03-12",0,0,0,1,"y",2,10,0,65,null,3,70,{"$f":"Table1[[#This Row],[TopScore Order]]+Table1[[#This Row],[Top Wicket Takers]]","v":3}]
[null,null,"Yusuf Pathan","2011-03-12",0,0,0,2,"y",0,4,0,20,null,null,71,{"$f":"Table1[[#This Row],[TopScore Order]]+Table1[[#This Row],[Top Wicket Takers]]","v":0}]
[null,null,"Suresh Raina","2011-03-12",null,null,null,null,null,null,null,null,null,null,null,72,{"$f":"Table1[[#This Row],[TopScore Order]]+Table1[[#This Row],[Top Wicket Takers]]","v":0}]
[null,null,"Sreesanth","2011-03-12",null,null,null,null,null,null,null,null,null,null,null,73,{"$f":"Table1[[#This Row],[TopScore Order]]+Table1[[#This Row],[Top Wicket Takers]]","v":0}]
[null,null,"Sachin Tendulkar","2011-03-12",111,8,3,101,"y",null,null,null,null,1,null,74,{"$f":"Table1[[#This Row],[TopScore Order]]+Table1[[#This Row],[Top Wicket Takers]]","v":1}]
[null,null,"Yuvraj Singh","2011-03-12",12,0,1,9,"y",0,8,0,47,null,null,75,{"$f":"Table1[[#This Row],[TopScore Order]]+Table1[[#This Row],[Top Wicket Takers]]","v":0}]
[null,null,"MS Dhoni (c/wk)","2011-03-20",22,1,0,30,"y",null,null,null,null,null,null,76,{"$f":"Table1[[#This Row],[TopScore Order]]+Table1[[#This Row],[Top Wicket Takers]]","v":0}]
[null,null,"Virender Sehwag (vc)","2011-03-20",null,null,null,null,null,null,null,null,null,null,null,77,{"$f":"Table1[[#This Row],[TopScore Order]]+Table1[[#This Row],[Top Wicket Takers]]","v":0}]
[null,null,"Ravichandran Ashwin","2011-03-20",10,1,0,7,"n",2,10,0,41,null,3,78,{"$f":"Table1[[#This Row],[TopScore Order]]+Table1[[#This Row],[Top Wicket Takers]]","v":3}]
[null,null,"Piyush Chawla","2011-03-20",null,null,null,null,null,null,null,null,null,null,null,79,{"$f":"Table1[[#This Row],[TopScore Order]]+Table1[[#This Row],[Top Wicket Takers]]","v":0}]
[null,null,"Gautam Gambhir","2011-03-20",22,4,0,26,"y",null,null,null,null,3,null,80,{"$f":"Table1[[#This Row],[TopScore Order]]+Table1[[#This Row],[Top Wicket Takers]]","v":3}]
[null,null,"Harbhajan Singh","2011-03-20",3,0,0,6,"y",1,9,1,35,null,null,81,{"$f":"Table1[[#This Row],[TopScore Order]]+Table1[[#This Row],[Top Wicket Takers]]","v":0}]
[null,null,"Zaheer Khan","2011-03-20",5,1,0,3,"y",3,6,0,26,null,1,82,{"$f":"Table1[[#This Row],[TopScore Order]]+Table1[[#This Row],[Top Wicket Takers]]","v":1}]
[null,null,"Virat Kohli","2011-03-20",59,5,0,76,"y",null,null,null,null,2,null,83,{"$f":"Table1[[#This Row],[TopScore Order]]+Table1[[#This Row],[Top Wicket Takers]]","v":2}]
[null,null,"Ashish Nehra","2011-03-20",null,null,null,null,null,null,null,null,null,null,null,84,{"$f":"Table1[[#This Row],[TopScore Order]]+Table1[[#This Row],[Top Wicket Takers]]","v":0}]
[null,null,"Munaf Patel","2011-03-20",1,0,0,2,"y",0,5,0,20,null,null,85,{"$f":"Table1[[#This Row],[TopScore Order]]+Table1[[#This Row],[Top Wicket Takers]]","v":0}]
[null,null,"Yusuf Pathan","2011-03-20",11,1,0,10,"y",0,7,0,28,null,null,86,{"$f":"Table1[[#This Row],[TopScore Order]]+Table1[[#This Row],[Top Wicket Takers]]","v":0}]
[null,null,"Suresh Raina","2011-03-20",4,0,0,8,"y",1,2,0,12,null,null,87,{"$f":"Table1[[#This Row],[TopScore Order]]+Table1[[#This Row],[Top Wicket Takers]]","v":0}]
[null,null,"Sreesanth","2011-03-20",null,null,null,null,null,null,null,null,null,null,null,88,{"$f":"Table1[[#This Row],[TopScore Order]]+Table1[[#This Row],[Top Wicket Takers]]","v":0}]
[null,null,"Sachin Tendulkar","2011-03-20",2,0,0,4,"y",null,null,null,null,null,null,89,{"$f":"Table1[[#This Row],[TopScore Order]]+Table1[[#This Row],[Top Wicket Takers]]","v":0}]
[null,null,"Yuvraj Singh","2011-03-20",113,10,2,123,"y",2,4,0,18,1,2,90,{"$f":"Table1[[#This Row],[TopScore Order]]+Table1[[#This Row],[Top Wicket Takers]]","v":3}]
[null,null,"MS Dhoni (c/wk)","2011-03-24",7,1,0,8,"y",null,null,null,null,null,null,91,{"$f":"Table1[[#This Row],[TopScore Order]]+Table1[[#This Row],[Top Wicket Takers]]","v":0}]
[null,null,"Virender Sehwag (vc)","2011-03-24",15,2,0,22,"y",null,null,null,null,null,null,92,{"$f":"Table1[[#This Row],[TopScore Order]]+Table1[[#This Row],[Top Wicket Takers]]","v":0}]
[null,null,"Ravichandran Ashwin","2011-03-24",null,null,null,null,null,2,10,0,52,null,1,93,{"$f":"Table1[[#This Row],[TopScore Order]]+Table1[[#This Row],[Top Wicket Takers]]","v":1}]
[null,null,"Piyush Chawla","2011-03-24",null,null,null,null,null,null,null,null,null,null,null,94,{"$f":"Table1[[#This Row],[TopScore Order]]+Table1[[#This Row],[Top Wicket Takers]]","v":0}]
[null,null,"Gautam Gambhir","2011-03-24",50,2,0,64,"y",null,null,null,null,3,null,95,{"$f":"Table1[[#This Row],[TopScore Order]]+Table1[[#This Row],[Top Wicket Takers]]","v":3}]
[null,null,"Harbhajan Singh","2011-03-24",null,null,null,null,null,0,10,0,50,null,null,96,{"$f":"Table1[[#This Row],[TopScore Order]]+Table1[[#This Row],[Top Wicket Takers]]","v":0}]
[null,null,"Zaheer Khan","2011-03-24",null,null,null,null,null,2,10,0,53,null,2,97,{"$f":"Table1[[#This Row],[TopScore Order]]+Table1[[#This Row],[Top Wicket Takers]]","v":2}]
[null,null,"Virat Kohli","2011-03-24",24,1,0,33,"y",0,1,0,6,null,null,98,{"$f":"Table1[[#This Row],[TopScore Order]]+Table1[[#This Row],[Top Wicket Takers]]","v":0}]
[null,null,"Ashish Nehra","2011-03-24",null,null,null,null,null,null,null,null,null,null,null,99,{"$f":"Table1[[#This Row],[TopScore Order]]+Table1[[#This Row],[Top Wicket Takers]]","v":0}]
[null,null,"Munaf Patel","2011-03-24",null,null,null,null,null,0,7,0,44,null,null,100,{"$f":"Table1[[#This Row],[TopScore Order]]+Table1[[#This Row],[Top Wicket Takers]]","v":0}]
[null,null,"Yusuf Pathan","2011-03-24",null,null,null,null,null,null,null,null,null,null,null,101,{"$f":"Table1[[#This Row],[TopScore Order]]+Table1[[#This Row],[Top Wicket Takers]]","v":0}]
[null,null,"Suresh Raina","2011-03-24",34,2,1,28,"n",null,null,null,null,null,null,102,{"$f":"Table1[[#This Row],[TopScore Order]]+Table1[[#This Row],[Top Wicket Takers]]","v":0}]
[null,null,"Sreesanth","2011-03-24",null,null,null,null,null,null,null,null,null,null,null,103,{"$f":"Table1[[#This Row],[TopScore Order]]+Table1[[#This Row],[Top Wicket Takers]]","v":0}]
[null,null,"Sachin Tendulkar","2011-03-24",53,7,0,68,"y",0,2,0,9,2,3,104,{"$f":"Table1[[#This Row],[TopScore Order]]+Table1[[#This Row],[Top Wicket Takers]]","v":5}]
[null,null,"Yuvraj Singh","2011-03-24",57,8,0,65,"n",2,10,0,44,1,null,105,{"$f":"Table1[[#This Row],[TopScore Order]]+Table1[[#This Row],[Top Wicket Takers]]","v":1}]
[null,null,"MS Dhoni (c/wk)","2011-03-30",25,2,0,42,"y",null,null,null,null,null,null,106,{"$f":"Table1[[#This Row],[TopScore Order]]+Table1[[#This Row],[Top Wicket Takers]]","v":0}]
[null,null,"Virender Sehwag (vc)","2011-03-30",38,9,0,25,"y",null,null,null,null,2,null,107,{"$f":"Table1[[#This Row],[TopScore Order]]+Table1[[#This Row],[Top Wicket Takers]]","v":2}]
[null,null,"Ravichandran Ashwin","2011-03-30",null,null,null,null,null,null,null,null,null,null,null,108,{"$f":"Table1[[#This Row],[TopScore Order]]+Table1[[#This Row],[Top Wicket Takers]]","v":0}]
[null,null,"Piyush Chawla","2011-03-30",null,null,null,null,null,null,null,null,null,null,null,109,{"$f":"Table1[[#This Row],[TopScore Order]]+Table1[[#This Row],[Top Wicket Takers]]","v":0}]
[null,null,"Gautam Gambhir","2011-03-30",27,2,0,32,"y",null,null,null,null,null,null,110,{"$f":"Table1[[#This Row],[TopScore Order]]+Table1[[#This Row],[Top Wicket Takers]]","v":0}]
[null,null,"Harbhajan Singh","2011-03-30",12,2,0,15,"y",2,10,0,43,null,3,111,{"$f":"Table1[[#This Row],[TopScore Order]]+Table1[[#This Row],[Top Wicket Takers]]","v":3}]
[null,null,"Zaheer Khan","2011-03-30",9,1,0,10,"y",2,10,0,58,null,null,112,{"$f":"Table1[[#This Row],[TopScore Order]]+Table1[[#This Row],[Top Wicket Takers]]","v":0}]
[null,null,"Virat Kohli","2011-03-30",9,0,0,21,"y",null,null,null,null,null,null,113,{"$f":"Table1[[#This Row],[TopScore Order]]+Table1[[#This Row],[Top Wicket Takers]]","v":0}]
[null,null,"Ashish Nehra","2011-03-30",1,0,0,2,"y",2,10,0,33,null,1,114,{"$f":"Table1[[#This Row],[TopScore Order]]+Table1[[#This Row],[Top Wicket Takers]]","v":1}]
[null,null,"Munaf Patel","2011-03-30",0,0,0,0,"n",2,10,1,40,null,2,115,{"$f":"Table1[[#This Row],[TopScore Order]]+Table1[[#This Row],[Top Wicket Takers]]","v":2}]
[null,null,"Yusuf Pathan","2011-03-30",null,null,null,null,null,null,null,null,null,null,null,116,{"$f":"Table1[[#This Row],[TopScore Order]]+Table1[[#This Row],[Top Wicket Takers]]","v":0}]
[null,null,"Suresh Raina","2011-03-30",36,3,0,39,"n",null,null,null,null,3,null,117,{"$f":"Table1[[#This Row],[TopScore Order]]+Table1[[#This Row],[Top Wicket Takers]]","v":3}]
[null,null,"Sreesanth","2011-03-30",null,null,null,null,null,null,null,null,null,null,null,118,{"$f":"Table1[[#This Row],[TopScore Order]]+Table1[[#This Row],[Top Wicket Takers]]","v":0}]
[null,null,"Sachin Tendulkar","2011-03-30",85,11,0,115,"y",null,null,null,null,1,null,119,{"$f":"Table1[[#This Row],[TopScore Order]]+Table1[[#This Row],[Top Wicket Takers]]","v":1}]
[null,null,"Yuvraj Singh","2011-03-30",0,0,0,1,"y",2,10,1,57,null,null,120,{"$f":"Table1[[#This Row],[TopScore Order]]+Table1[[#This Row],[Top Wicket Takers]]","v":0}]
[null,null,"MS Dhoni (c/wk)","2011-04-02",91,8,2,79,"n",null,null,null,null,2,null,121,{"$f":"Table1[[#This Row],[TopScore Order]]+Table1[[#This Row],[Top Wicket Takers]]","v":2}]
[null,null,"Virender Sehwag (vc)","2011-04-02",0,0,0,2,"y",null,null,null,null,null,null,122,{"$f":"Table1[[#This Row],[TopScore Order]]+Table1[[#This Row],[Top Wicket Takers]]","v":0}]
[null,null,"Ravichandran Ashwin","2011-04-02",null,null,null,null,null,null,null,null,null,null,null,123,{"$f":"Table1[[#This Row],[TopScore Order]]+Table1[[#This Row],[Top Wicket Takers]]","v":0}]
[null,null,"Piyush Chawla","2011-04-02",null,null,null,null,null,null,null,null,null,null,null,124,{"$f":"Table1[[#This Row],[TopScore Order]]+Table1[[#This Row],[Top Wicket Takers]]","v":0}]
[null,null,"Gautam Gambhir","2011-04-02",97,9,0,122,"y",null,null,null,null,1,null,125,{"$f":"Table1[[#This Row],[TopScore Order]]+Table1[[#This Row],[Top Wicket Takers]]","v":1}]
[null,null,"Harbhajan Singh","2011-04-02",null,null,null,null,null,1,10,0,50,null,null,126,{"$f":"Table1[[#This Row],[TopScore Order]]+Table1[[#This Row],[Top Wicket Takers]]","v":0}]
[null,null,"Zaheer Khan","2011-04-02",null,null,null,null,null,2,10,3,60,null,2,127,{"$f":"Table1[[#This Row],[TopScore Order]]+Table1[[#This Row],[Top Wicket Takers]]","v":2}]
[null,null,"Virat Kohli","2011-04-02",35,4,0,49,"y",0,1,0,6,3,null,128,{"$f":"Table1[[#This Row],[TopScore Order]]+Table1[[#This Row],[Top Wicket Takers]]","v":3}]
[null,null,"Ashish Nehra","2011-04-02",null,null,null,null,null,null,null,null,null,null,null,129,{"$f":"Table1[[#This Row],[TopScore Order]]+Table1[[#This Row],[Top Wicket Takers]]","v":0}]
[null,null,"Munaf Patel","2011-04-02",null,null,null,null,null,0,9,0,41,null,3,130,{"$f":"Table1[[#This Row],[TopScore Order]]+Table1[[#This Row],[Top Wicket Takers]]","v":3}]
[null,null,"Yusuf Pathan","2011-04-02",null,null,null,null,null,null,null,null,null,null,null,131,{"$f":"Table1[[#This Row],[TopScore Order]]+Table1[[#This Row],[Top Wicket Takers]]","v":0}]
[null,null,"Suresh Raina","2011-04-02",null,null,null,null,null,null,null,null,null,null,null,132,{"$f":"Table1[[#This Row],[TopScore Order]]+Table1[[#This Row],[Top Wicket Takers]]","v":0}]
[null,null,"Sreesanth","2011-04-02",null,null,null,null,null,0,8,0,52,null,null,133,{"$f":"Table1[[#This Row],[TopScore Order]]+Table1[[#This Row],[Top Wicket Takers]]","v":0}]
[null,null,"Sachin Tendulkar","2011-04-02",18,2,0,14,"y",0,2,0,12,null,null,134,{"$f":"Table1[[#This Row],[TopScore Order]]+Table1[[#This Row],[Top Wicket Takers]]","v":0}]
[null,null,"Yuvraj Singh","2011-04-02",21,2,0,24,"n",2,10,0,49,null,1,135,{"$f":"Table1[[#This Row],[TopScore Order]]+Table1[[#This Row],[Top Wicket Takers]]","v":1}]
[]
[]
[1,"Top 10 total tournament Run Scorers",null,null,2,"Wicket Takers (tournament)",null,null,null,null,null,null,3,"Catch Takers (tournament)",null,null,null,4,"Partnerships (tournament)"]
[]
[null,"Name","Country","Score",null,null,"Name","Country","Wickets","Overs Bowled","Runs Given","Maidens",null,null,"Name","Country","Catches",null,null,"B1","B2","Country","Runs","Balls","Against","Wicket"]
[1,"TM Dilshan ","Sri Lanka",500,null,1,"Shahid Afridi","Pakistan",21,74.3,270,4,null,1,"DPMD Jayawardene (SL)","Sri Lanka",8,null,1,"WU Tharanga","TM Dilshan","Sri Lanka",282,268,"Zimbabwe","1st"]
[2,"SR Tendulkar ","India",482,null,2,"Z Khan ","India",21,81.3,394,4,null,2,"JH Kallis (SA)","Pakistan",6,null,2,"TM Dilshan","WU Tharanga","Sri Lanka",231,236.99999999999997,"England","1st"]
[3,"KC Sangakkara ","Sri Lanka",465,null,3,"TG Southee","New Zealand",18,72.2,312,9,null,3,"RJ Peterson (SA)","Sri Lanka",6,null,3,"HM Amla","AB de Villiers","South Africa",221,176,"Netherlands","3rd"]
[4,"IJL Trott ","England",422,null,4,"RJ Peterson","South Africa",15,56,238,5,null,4,"KA Pollard (WI)","New Zealand",6,null,4,"V Sehwag","V Kohli","India",203,145,"Bangladesh","3rd"]
[5,"WU Tharanga ","Sri Lanka",395,null,5,"M Muralitharan","Sri Lanka",15,71,291,1,null,5,"TM Dilshan (SL)","Canada",6,null,5,"BJ Haddin","SR Watson","Australia",183,173,"Canada","1st"]
[6,"G Gambhir ","India",393,null,6,"Yuvraj Singh","India",15,75,377,2,null,6,"JM Davison (Can)","South Africa",5,null,6,"CR Ervine","T Taibu","Zimbabwe",181,167,"Canada","3rd"]
[7,"V Sehwag ","India",380,null,7,"Imran Tahir ","South Africa",14,39.299999999999997,150,2,null,7,"AN Kervezee (Neth)","West Indies",5,null,7,"KC Sangakkara","DPMD Jayawardene","Sri Lanka",179,137,"Canada","3rd"]
[8,"Yuvraj Singh ","India",362,null,8,"Umar Gul","Pakistan",14,60.3,272,5,null,8,"JDP Oram (NZ)","England",5,null,8,"WTS Porterfield","PR Stirling","Ireland",177,162,"Netherlands","1st"]
[9,"AB de Villiers ","South Africa",353,null,9,"KAJ Roach","West Indies",13,46,195,2,null,9,"GC Smith (SA)","India",5,null,9,"IR Bell","AJ Strauss","England",170,156,"India","3rd"]
[10,"AJ Strauss ","England",334,null,10,"B Lee","Australia",13,54.2,235,6,null,10,"Shahid Afridi (Pak)","West Indies",5,null,10,"IR Bell","IJL Trott","England",167,156,"Ireland","3rd"]
[]
[]
["Top 5"]
[null,"Highest Individual Match Scores",null,null,null,null,"Highest Individual scorers in a single match",null,null,null,null,null,null,null,null,"Highest Wicket Takers in a single match"]
[null,"Country name","Score","Against","Match Result (WON/LOST/TIED/NO RESULT)",null,null,"Name","Country","Score","Againsts","4s","6s","balls",null,null,"Name","Country","Wickets","Overs Bowled","Runs Given","Maidens"]
[1,"India",370,"Bangladesh","WON",null,1,"V Sehwag","India",175,"Bangladesh",14,5,140,null,1,"KAJ Roach","West Indies",6,8.3000000000000007,27,0]
[2,"New Zealand",358,"Canada","WON",null,2,"AJ Strauss","England",158,"India",18,1,145,null,2,"SL Malinga","Sri Lanka",6,7.4,38,0]
[3,"South Africa",351,"Netherlands","WON",null,3,"TM Dilshan","Sri Lanka",144,"Zimbabwe",16,1,131,null,3,"Shahid Afridi","Pakistan",5,8,16,3]
[4,"India",338,"England","TIED",null,4,"AB de Villiers","South Africa",134,"Netherlands",13,4,98,null,4,"TT Bresnan","England",5,10,48,1]
[5,"Sri Lanka",332,"Canada","WON",null,5,"LRPL Taylor","New Zealand",131,"Pakistan",8,7,124,null,5,"Shahid Afridi","Pakistan",5,10,23,0]

{"sheet":"Calculations","index":2,"n_rows":67,"n_cols":32,"rows_kept":67,"cut":false,"hidden":true,"merged":[]}
[]
[]
[null,null,null,null,null,null,null,null,null,null,null,null,null,null,"Best"]
[null,null,null,null,null,null,null,null,null,null,null,null,null,null,"Batting","Runs"]
[null,null,"Total Score in all matches Taken",{"$f":"SUM(Data!H4:H12)","v":2471},null,"runs",{"$f":"D5&\" \"&F5","v":"2471 runs"},null,null,null,null,null,null,null,{"$f":"TRIM(Data!B162) & \" (\"&VLOOKUP(Data!C162,Flags!$J$2:$K$15,2,FALSE)&\")\"","v":"TM Dilshan (SL)"},{"$f":"Data!D162","v":500},null,{"$f":"TRIM(Data!G162) & \" (\"&VLOOKUP(Data!H162,Flags!$J$2:$K$15,2,FALSE)&\")\"","v":"Shahid Afridi (Pak)"},{"$f":"Data!I162","v":21},{"$f":"S5&\" wkts/\"&Data!J162&\" ovrs\"","v":"21 wkts/74.3 ovrs"}]
[null,null,"Total Score in all matches Given",{"$f":"SUM(Data!K4:K12)","v":2270},null,"runs given","2270 runs given",null,null,null,null,null,null,null,{"$f":"TRIM(Data!B163) & \" (\"&VLOOKUP(Data!C163,Flags!$J$2:$K$15,2,FALSE)&\")\"","v":"SR Tendulkar (Ind)"},{"$f":"Data!D163","v":482},null,{"$f":"TRIM(Data!G163) & \" (\"&VLOOKUP(Data!H163,Flags!$J$2:$K$15,2,FALSE)&\")\"","v":"Z Khan (Ind)"},{"$f":"Data!I163","v":21},{"$f":"S6&\"/\"&Data!J163","v":"21/81.3"}]
[null,null,"Total Wickets Taken",{"$f":"SUM(Data!L4:L12)","v":76},null,"wickets taken",{"$f":"\"We took \"&D7&\" wickets\"","v":"We took 76 wickets"},null,null,null,null,null,null,null,{"$f":"TRIM(Data!B164) & \" (\"&VLOOKUP(Data!C164,Flags!$J$2:$K$15,2,FALSE)&\")\"","v":"KC Sangakkara (SL)"},{"$f":"Data!D164","v":465},null,{"$f":"TRIM(Data!G164) & \" (\"&VLOOKUP(Data!H164,Flags!$J$2:$K$15,2,FALSE)&\")\"","v":"TG Southee (NZ)"},{"$f":"Data!I164","v":18},{"$f":"S7&\"/\"&Data!J164","v":"18/72.2"}]
[null,null,"Total Wickets Lost",{"$f":"SUM(Data!I4:I12)","v":62},null,"wickets lost","62 wickets lost",null,null,null,null,null,null,null,{"$f":"TRIM(Data!B165) & \" (\"&VLOOKUP(Data!C165,Flags!$J$2:$K$15,2,FALSE)&\")\"","v":"IJL Trott (Eng)"},{"$f":"Data!D165","v":422},null,{"$f":"TRIM(Data!G165) & \" (\"&VLOOKUP(Data!H165,Flags!$J$2:$K$15,2,FALSE)&\")\"","v":"RJ Peterson (RSA)"},{"$f":"Data!I165","v":15},{"$f":"S8&\"/\"&Data!J165","v":"15/56"}]
[null,null,"Total Matches",9,null,"matches",{"$f":"D9&\" \"&F9","v":"9 matches"},null,{"$f":"\"and \"&G13&\", \"&G14&\" and \"&G15","v":"and and 13 half-centuries, 235 fours and 57 sixes"},null,null,null,null,null,{"$f":"TRIM(Data!B166) & \" (\"&VLOOKUP(Data!C166,Flags!$J$2:$K$15,2,FALSE)&\")\"","v":"WU Tharanga (SL)"},{"$f":"Data!D166","v":395},null,{"$f":"TRIM(Data!G166) & \" (\"&VLOOKUP(Data!H166,Flags!$J$2:$K$15,2,FALSE)&\")\"","v":"M Muralitharan (SL)"},{"$f":"Data!I166","v":15},{"$f":"S9&\"/\"&Data!J166","v":"15/71"}]
[null,null,"Won",{"$f":"COUNTIF(Data!P4:P12,\"WON\")","v":7},null,"won",{"$f":"D10&\" \"&F10","v":"7 won"},null,null,null,null,null,null,null,{"$f":"TRIM(Data!B167) & \" (\"&VLOOKUP(Data!C167,Flags!$J$2:$K$15,2,FALSE)&\")\"","v":"G Gambhir (Ind)"},{"$f":"Data!D167","v":393},null,{"$f":"TRIM(Data!G167) & \" (\"&VLOOKUP(Data!H167,Flags!$J$2:$K$15,2,FALSE)&\")\"","v":"Yuvraj Singh (Ind)"},{"$f":"Data!I167","v":15},{"$f":"S10&\"/\"&Data!J167","v":"15/75"}]
[null,null,"Players",{"$f":"16","v":16},null,"players","16 players",null,null,null,null,null,null,null,{"$f":"TRIM(Data!B168) & \" (\"&VLOOKUP(Data!C168,Flags!$J$2:$K$15,2,FALSE)&\")\"","v":"V Sehwag (Ind)"},{"$f":"Data!D168","v":380},null,{"$f":"TRIM(Data!G168) & \" (\"&VLOOKUP(Data!H168,Flags!$J$2:$K$15,2,FALSE)&\")\"","v":"Imran Tahir (RSA)"},{"$f":"Data!I168","v":14},{"$f":"S11&\"/\"&Data!J168","v":"14/39.3"}]
[null,null,"Centuries",{"$f":"COUNTIF(Table1[Runs],\">99\")","v":5},null,"centuries","5 centuries",null,null,null,null,null,null,null,{"$f":"TRIM(Data!B169) & \" (\"&VLOOKUP(Data!C169,Flags!$J$2:$K$15,2,FALSE)&\")\"","v":"Yuvraj Singh (Ind)"},{"$f":"Data!D169","v":362},null,{"$f":"TRIM(Data!G169) & \" (\"&VLOOKUP(Data!H169,Flags!$J$2:$K$15,2,FALSE)&\")\"","v":"Umar Gul (Pak)"},{"$f":"Data!I169","v":14},{"$f":"S12&\"/\"&Data!J169","v":"14/60.3"}]
[null,null,"Half-centuries",{"$f":"COUNTIF(Table1[Runs],\">49\")-D12","v":13},null,"half-centuries",{"$f":"\"and \"&D13&\" \"&F13","v":"and 13 half-centuries"},null,null,null,null,null,null,null,{"$f":"TRIM(Data!B170) & \" (\"&VLOOKUP(Data!C170,Flags!$J$2:$K$15,2,FALSE)&\")\"","v":"AB de Villiers (RSA)"},{"$f":"Data!D170","v":353},null,{"$f":"TRIM(Data!G170) & \" (\"&VLOOKUP(Data!H170,Flags!$J$2:$K$15,2,FALSE)&\")\"","v":"KAJ Roach (WI)"},{"$f":"Data!I170","v":13},{"$f":"S13&\"/\"&Data!J170","v":"13/46"}]
[null,null,"Fours",{"$f":"SUM(Table1[4s])","v":235},null,"fours","235 fours",null,null,null,null,null,null,null,{"$f":"TRIM(Data!B171) & \" (\"&VLOOKUP(Data!C171,Flags!$J$2:$K$15,2,FALSE)&\")\"","v":"AJ Strauss (Eng)"},{"$f":"Data!D171","v":334},null,{"$f":"TRIM(Data!G171) & \" (\"&VLOOKUP(Data!H171,Flags!$J$2:$K$15,2,FALSE)&\")\"","v":"B Lee (Aus)"},{"$f":"Data!I171","v":13},{"$f":"S14&\"/\"&Data!J171","v":"13/54.2"}]
[null,null,"Sixes",{"$f":"SUM(Table1[6s])","v":57},null,"sixes","57 sixes",null,"2/3rd sixes by Sachin, Sehwag & Yuvraj"]
[null,null,"Balls Faced",{"$f":"SUM(Table1[Balls faced])","v":2564},null,"balls faced","2564 balls faced",null,null,null,null,null,null,null,"Top 3 Batsmen",null,"Sachin, Gambhir & Sehwag",null,null,"Top 3 Wicket Takers",null,"Zaheer, Yuvraj & Munaf"]
[null,null,"Venue",8,"in ","venues",{"$f":"E17&D17&\" \"&F17","v":"in 8 venues"},null,null,null,null,null,null,null,{"$f":"Data!B163","v":"SR Tendulkar "},null,{"$f":"Data!D163","v":482},null,null,"Z Khan ","India",21]
[null,null,"Overs Bowled",{"$f":"Data!M15","v":437},null,"overs bowled",{"$f":"\"in \"&E18&D18&\" \"&F18","v":"in 437 overs bowled"},null,null,null,null,null,null,null,{"$f":"Data!B167","v":"G Gambhir "},null,{"$f":"Data!D167","v":393},null,null,"Yuvraj Singh","India",15]
[null,null,"Batted First",6,null,"batted first",{"$f":"\"We \"&\" \"&F19&\" \"&D19&\" times\"","v":"We  batted first 6 times"},null,null,null,null,null,null,null,{"$f":"Data!B168","v":"V Sehwag "},null,{"$f":"Data!D168","v":380},null,null,"Munaf Patel","India",11]
[null,null,null,null,null,null,null,null,null,null,null,null,null,null,null,null,{"$f":"SUM(Q17:Q19)","v":1255},null,null,null,null,{"$f":"SUM(V17:V19)","v":47}]
[null,"Nickname","Summary by Player","6s",null,"Summary by Selected Match",null,null,null,null,null,null,null,null,null,null,{"$f":"\"Batsmen - \"&Q16&\" scored \"&TEXT(Q20/D5,\"0%\")&\" of runs\"","v":"Batsmen - Sachin, Gambhir & Sehwag scored 51% of runs"},null,null,null,null,{"$f":"\"Bowlers - \"&V16&\" took \"&TEXT(V20/D7,\"0%\")&\" wickets\"","v":"Bowlers - Zaheer, Yuvraj & Munaf took 62% wickets"}]
[null,"Dhoni","MS Dhoni (c/wk)",{"$f":"SUMIF(Table1[Name],C22,Table1[6s])","v":5},null,"Selected Match",null,9]
[null,"Sehwag","Virender Sehwag (vc)",{"$f":"SUMIF(Table1[Name],C23,Table1[6s])","v":13},null,"Match Date",{"$f":"INDEX(Data!C4:C12,valSelMatch)","v":40635}]
[null,"Ashwin","Ravichandran Ashwin",{"$f":"SUMIF(Table1[Name],C24,Table1[6s])","v":0},null,"Basic Data"]
[null,"Piyush","Piyush Chawla",{"$f":"SUMIF(Table1[Name],C25,Table1[6s])","v":0},null,1,2,3,4,5,6,7,8,9,10,11,12,13,14,15,16,17,18,19,20,21,22,23,24,25,26,27]
[null,"Gambhir","Gautam Gambhir",{"$f":"SUMIF(Table1[Name],C26,Table1[6s])","v":5},null,null,null,null,null,null,"India Score",null,null,"Opposition Score",null,null,null,null,null,null,"India",null,null,null,null,null,"Opposition"]
[null,"Harbhajan","Harbhajan Singh",{"$f":"SUMIF(Table1[Name],C27,Table1[6s])","v":0},null,"Date of Match","Round","Venue (Stadium Name)","Location (City)","with whom (country)","Score","Wickets","Overs Played","Score","Wickets","Overs Played","Who Won the Toss","Who batted first","Match Result (WON / LOST / TIED)","Man of the Match","Sixes","Fours","High Scorer","Highest Score","Highest Wicket Taker","Highest Wickets","Sixes","Fours","High Scorer","Highest Score","Highest Wicket Taker","Highest Wickets"]
[null,"Zaheer","Zaheer Khan",{"$f":"SUMIF(Table1[Name],C28,Table1[6s])","v":0},null,{"$f":"INDEX(Data!C4:AC12,valSelMatch,$F$25:$AF$25)","v":40635},"Final","Wankhede Stadium","Mumbai  ","Sri Lanka",277,4,48.2,274,6,50,"Sri Lanka","Sri Lanka","WON","MS Dhoni (c/wk)",2,35,"Gautam Gambhir",97,"Zaheer Khan",2,2,27,"DPMD Jayawardene",103,"SL Malinga",2]
[null,"Kohli","Virat Kohli",{"$f":"SUMIF(Table1[Name],C29,Table1[6s])","v":3},null,"Heading",{"$f":"G28&\" match between India & \" &J28&\" played at \"&H28&\", \"&I28","v":"Final match between India & Sri Lanka played at Wankhede Stadium, Mumbai  "}]
[null,"Nehra","Ashish Nehra",{"$f":"SUMIF(Table1[Name],C30,Table1[6s])","v":0},null,"Result",{"$f":"INDEX(Data!A4:A12,valSelMatch)","v":"India won by 6 wickets"}]
[null,"Munaf","Munaf Patel",{"$f":"SUMIF(Table1[Name],C31,Table1[6s])","v":0},null,"Toss",{"$f":"Q28&\" won the toss and choose to \"&IF(R28<>Q28,\"bowl\", \"bat\")&\" first\"","v":"Sri Lanka won the toss and choose to bat first"},null,null,null,null,null,null,null,null,null,"Display"]
[null,"Yusuf","Yusuf Pathan",{"$f":"SUMIF(Table1[Name],C32,Table1[6s])","v":5},null,"First Batting Team",{"$f":"R28","v":"Sri Lanka"},null,null,null,null,null,null,null,null,null,"Batting",null,null,null,null,null,null,null,"Bowling"]
[null,"Raina","Suresh Raina",{"$f":"SUMIF(Table1[Name],C33,Table1[6s])","v":1},null,"Score",{"$f":"K28&\"/\"&L28&\" in \"&M28&\" overs\"","v":"277/4 in 48.2 overs"},{"$f":"N28&\"/\"&O28&\" in \"&P28&\" overs\"","v":"274/6 in 50 overs"}]
[null,"Sreesanth","Sreesanth",{"$f":"SUMIF(Table1[Name],C34,Table1[6s])","v":0},null,"Batting:",1,2,3,null,"Bowling",1,2,3,null,null,null,"Runs",null,"Balls","4s","6s","SR",null,null,"Overs","M","R","W","RPO"]
[null,"Sachin","Sachin Tendulkar",{"$f":"SUMIF(Table1[Name],C35,Table1[6s])","v":13},null,null,{"$f":"INDEX(Table1[Name],SUMIFS(Table1[Number],Table1[Match Date],valSelMatchDate,Table1[TopScore Order],G$34))","v":"Gautam Gambhir"},{"$f":"INDEX(Table1[Name],SUMIFS(Table1[Number],Table1[Match Date],valSelMatchDate,Table1[TopScore Order],H$34))","v":"MS Dhoni (c/wk)"},{"$f":"INDEX(Table1[Name],SUMIFS(Table1[Number],Table1[Match Date],valSelMatchDate,Table1[TopScore Order],I$34))","v":"Virat Kohli"},null,null,{"$f":"INDEX(Table1[Name],SUMIFS(Table1[Number],Table1[Match Date],valSelMatchDate,Table1[Top Wicket Takers],L$34))","v":"Yuvraj Singh"},{"$f":"INDEX(Table1[Name],SUMIFS(Table1[Number],Table1[Match Date],valSelMatchDate,Table1[Top Wicket Takers],M$34))","v":"Zaheer Khan"},{"$f":"INDEX(Table1[Name],SUMIFS(Table1[Number],Table1[Match Date],valSelMatchDate,Table1[Top Wicket Takers],N$34))","v":"Munaf Patel"},null,1,{"$f":"INDEX($B$22:$B$36,MATCH(INDEX(Table1[Name],SUMIFS(Table1[Number],Table1[Match Date],valSelMatchDate,Table1[TopScore Order],$P35)),$C$22:$C$36,0))","v":"Gambhir"},{"$f":"INDEX(Table1[Runs],SUMIFS(Table1[Number],Table1[Match Date],valSelMatchDate,Table1[TopScore Order],$P35))","v":97},{"$f":"IF(INDEX(Table1[Got out (Yes / No)],SUMIFS(Table1[Number],Table1[Match Date],valSelMatchDate,Table1[TopScore Order],$P35))=\"n\",\"*\",\"\")","v":""},{"$f":"INDEX(Table1[Balls faced],SUMIFS(Table1[Number],Table1[Match Date],valSelMatchDate,Table1[TopScore Order],$P35))","v":122},{"$f":"INDEX(Table1[4s],SUMIFS(Table1[Number],Table1[Match Date],valSelMatchDate,Table1[TopScore Order],$P35))","v":9},{"$f":"INDEX(Table1[6s],SUMIFS(Table1[Number],Table1[Match Date],valSelMatchDate,Table1[TopScore Order],$P35))","v":0},{"$f":"INDEX(Table1[Runs],SUMIFS(Table1[Number],Table1[Match Date],valSelMatchDate,Table1[TopScore Order],$P35))/T35","v":0.79508196721311475},1,{"$f":"INDEX($B$22:$B$36,MATCH(INDEX(Table1[Name],SUMIFS(Table1[Number],Table1[Match Date],valSelMatchDate,Table1[Top Wicket Takers],$X35)),$C$22:$C$36,0))","v":"Yuvraj"},{"$f":"INDEX(Table1[Overs Bowled (round figures only)],SUMIFS(Table1[Number],Table1[Match Date],valSelMatchDate,Table1[Top Wicket Takers],$X35))","v":10},{"$f":"INDEX(Table1[Maidens],SUMIFS(Table1[Number],Table1[Match Date],valSelMatchDate,Table1[Top Wicket Takers],$X35))","v":0},{"$f":"INDEX(Table1[Runs Given],SUMIFS(Table1[Number],Table1[Match Date],valSelMatchDate,Table1[Top Wicket Takers],$X35))","v":49},{"$f":"INDEX(Table1[Wickets],SUMIFS(Table1[Number],Table1[Match Date],valSelMatchDate,Table1[Top Wicket Takers],$X35))","v":2},{"$f":"AB35/Z35","v":4.9000000000000004}]
[null,"Yuvraj","Yuvraj Singh",{"$f":"SUMIF(Table1[Name],C36,Table1[6s])","v":12},null,null,{"$f":"INDEX(Table1[Runs],SUMIFS(Table1[Number],Table1[Match Date],valSelMatchDate,Table1[TopScore Order],G$34))","v":97},{"$f":"INDEX(Table1[Runs],SUMIFS(Table1[Number],Table1[Match Date],valSelMatchDate,Table1[TopScore Order],H$34))","v":91},{"$f":"INDEX(Table1[Runs],SUMIFS(Table1[Number],Table1[Match Date],valSelMatchDate,Table1[TopScore Order],I$34))","v":35},null,null,{"$f":"INDEX(Table1[Overs Bowled (round figures only)],SUMIFS(Table1[Number],Table1[Match Date],valSelMatchDate,Table1[Top Wicket Takers],L$34))","v":10},{"$f":"INDEX(Table1[Overs Bowled (round figures only)],SUMIFS(Table1[Number],Table1[Match Date],valSelMatchDate,Table1[Top Wicket Takers],M$34))","v":10},{"$f":"INDEX(Table1[Overs Bowled (round figures only)],SUMIFS(Table1[Number],Table1[Match Date],valSelMatchDate,Table1[Top Wicket Takers],N$34))","v":9},null,2,{"$f":"INDEX($B$22:$B$36,MATCH(INDEX(Table1[Name],SUMIFS(Table1[Number],Table1[Match Date],valSelMatchDate,Table1[TopScore Order],$P36)),$C$22:$C$36,0))","v":"Dhoni"},{"$f":"INDEX(Table1[Runs],SUMIFS(Table1[Number],Table1[Match Date],valSelMatchDate,Table1[TopScore Order],$P36))","v":91},{"$f":"IF(INDEX(Table1[Got out (Yes / No)],SUMIFS(Table1[Number],Table1[Match Date],valSelMatchDate,Table1[TopScore Order],$P36))=\"n\",\"*\",\"\")","v":"*"},{"$f":"INDEX(Table1[Balls faced],SUMIFS(Table1[Number],Table1[Match Date],valSelMatchDate,Table1[TopScore Order],$P36))","v":79},{"$f":"INDEX(Table1[4s],SUMIFS(Table1[Number],Table1[Match Date],valSelMatchDate,Table1[TopScore Order],$P36))","v":8},{"$f":"INDEX(Table1[6s],SUMIFS(Table1[Number],Table1[Match Date],valSelMatchDate,Table1[TopScore Order],$P36))","v":2},{"$f":"INDEX(Table1[Runs],SUMIFS(Table1[Number],Table1[Match Date],valSelMatchDate,Table1[TopScore Order],$P36))/T36","v":1.1518987341772151},2,{"$f":"INDEX($B$22:$B$36,MATCH(INDEX(Table1[Name],SUMIFS(Table1[Number],Table1[Match Date],valSelMatchDate,Table1[Top Wicket Takers],$X36)),$C$22:$C$36,0))","v":"Zaheer"},{"$f":"INDEX(Table1[Overs Bowled (round figures only)],SUMIFS(Table1[Number],Table1[Match Date],valSelMatchDate,Table1[Top Wicket Takers],$X36))","v":10},{"$f":"INDEX(Table1[Maidens],SUMIFS(Table1[Number],Table1[Match Date],valSelMatchDate,Table1[Top Wicket Takers],$X36))","v":3},{"$f":"INDEX(Table1[Runs Given],SUMIFS(Table1[Number],Table1[Match Date],valSelMatchDate,Table1[Top Wicket Takers],$X36))","v":60},{"$f":"INDEX(Table1[Wickets],SUMIFS(Table1[Number],Table1[Match Date],valSelMatchDate,Table1[Top Wicket Takers],$X36))","v":2},{"$f":"AB36/Z36","v":6}]
[null,null,null,null,null,null,{"$f":"INDEX(Table1[Balls faced],SUMIFS(Table1[Number],Table1[Match Date],valSelMatchDate,Table1[TopScore Order],G$34))","v":122},{"$f":"INDEX(Table1[Balls faced],SUMIFS(Table1[Number],Table1[Match Date],valSelMatchDate,Table1[TopScore Order],H$34))","v":79},{"$f":"INDEX(Table1[Balls faced],SUMIFS(Table1[Number],Table1[Match Date],valSelMatchDate,Table1[TopScore Order],I$34))","v":49},null,null,{"$f":"INDEX(Table1[Wickets],SUMIFS(Table1[Number],Table1[Match Date],valSelMatchDate,Table1[Top Wicket Takers],L$34))","v":2},{"$f":"INDEX(Table1[Wickets],SUMIFS(Table1[Number],Table1[Match Date],valSelMatchDate,Table1[Top Wicket Takers],M$34))","v":2},{"$f":"INDEX(Table1[Wickets],SUMIFS(Table1[Number],Table1[Match Date],valSelMatchDate,Table1[Top Wicket Takers],N$34))","v":0},null,3,{"$f":"INDEX($B$22:$B$36,MATCH(INDEX(Table1[Name],SUMIFS(Table1[Number],Table1[Match Date],valSelMatchDate,Table1[TopScore Order],$P37)),$C$22:$C$36,0))","v":"Kohli"},{"$f":"INDEX(Table1[Runs],SUMIFS(Table1[Number],Table1[Match Date],valSelMatchDate,Table1[TopScore Order],$P37))","v":35},{"$f":"IF(INDEX(Table1[Got out (Yes / No)],SUMIFS(Table1[Number],Table1[Match Date],valSelMatchDate,Table1[TopScore Order],$P37))=\"n\",\"*\",\"\")","v":""},{"$f":"INDEX(Table1[Balls faced],SUMIFS(Table1[Number],Table1[Match Date],valSelMatchDate,Table1[TopScore Order],$P37))","v":49},{"$f":"INDEX(Table1[4s],SUMIFS(Table1[Number],Table1[Match Date],valSelMatchDate,Table1[TopScore Order],$P37))","v":4},{"$f":"INDEX(Table1[6s],SUMIFS(Table1[Number],Table1[Match Date],valSelMatchDate,Table1[TopScore Order],$P37))","v":0},{"$f":"INDEX(Table1[Runs],SUMIFS(Table1[Number],Table1[Match Date],valSelMatchDate,Table1[TopScore Order],$P37))/T37","v":0.7142857142857143},3,{"$f":"INDEX($B$22:$B$36,MATCH(INDEX(Table1[Name],SUMIFS(Table1[Number],Table1[Match Date],valSelMatchDate,Table1[Top Wicket Takers],$X37)),$C$22:$C$36,0))","v":"Munaf"},{"$f":"INDEX(Table1[Overs Bowled (round figures only)],SUMIFS(Table1[Number],Table1[Match Date],valSelMatchDate,Table1[Top Wicket Takers],$X37))","v":9},{"$f":"INDEX(Table1[Maidens],SUMIFS(Table1[Number],Table1[Match Date],valSelMatchDate,Table1[Top Wicket Takers],$X37))","v":0},{"$f":"INDEX(Table1[Runs Given],SUMIFS(Table1[Number],Table1[Match Date],valSelMatchDate,Table1[Top Wicket Takers],$X37))","v":41},{"$f":"INDEX(Table1[Wickets],SUMIFS(Table1[Number],Table1[Match Date],valSelMatchDate,Table1[Top Wicket Takers],$X37))","v":0},{"$f":"AB37/Z37","v":4.5555555555555554}]
[null,null,"Match Results",null,null,null,{"$f":"INDEX(Table1[4s],SUMIFS(Table1[Number],Table1[Match Date],valSelMatchDate,Table1[TopScore Order],G$34))","v":9},{"$f":"INDEX(Table1[4s],SUMIFS(Table1[Number],Table1[Match Date],valSelMatchDate,Table1[TopScore Order],H$34))","v":8},{"$f":"INDEX(Table1[4s],SUMIFS(Table1[Number],Table1[Match Date],valSelMatchDate,Table1[TopScore Order],I$34))","v":4},null,null,{"$f":"INDEX(Table1[Runs Given],SUMIFS(Table1[Number],Table1[Match Date],valSelMatchDate,Table1[Top Wicket Takers],L$34))","v":49},{"$f":"INDEX(Table1[Runs Given],SUMIFS(Table1[Number],Table1[Match Date],valSelMatchDate,Table1[Top Wicket Takers],M$34))","v":60},{"$f":"INDEX(Table1[Runs Given],SUMIFS(Table1[Number],Table1[Match Date],valSelMatchDate,Table1[Top Wicket Takers],N$34))","v":41}]
[null,null,{"$f":"IF(Data!P4=\"WON\",\"India won\",IF(Data!P4=\"LOST\",Data!G4&\" won\",\"Match tied\"))","v":"India won"},null,null,null,{"$f":"INDEX(Table1[6s],SUMIFS(Table1[Number],Table1[Match Date],valSelMatchDate,Table1[TopScore Order],G$34))","v":0},{"$f":"INDEX(Table1[6s],SUMIFS(Table1[Number],Table1[Match Date],valSelMatchDate,Table1[TopScore Order],H$34))","v":2},{"$f":"INDEX(Table1[6s],SUMIFS(Table1[Number],Table1[Match Date],valSelMatchDate,Table1[TopScore Order],I$34))","v":0},null,null,{"$f":"INDEX(Table1[Maidens],SUMIFS(Table1[Number],Table1[Match Date],valSelMatchDate,Table1[Top Wicket Takers],L$34))","v":0},{"$f":"INDEX(Table1[Maidens],SUMIFS(Table1[Number],Table1[Match Date],valSelMatchDate,Table1[Top Wicket Takers],M$34))","v":3},{"$f":"INDEX(Table1[Maidens],SUMIFS(Table1[Number],Table1[Match Date],valSelMatchDate,Table1[Top Wicket Takers],N$34))","v":0},null,null,{"$f":"AC28","v":"DPMD Jayawardene"},{"$f":"AD28","v":103},null,null,{"$f":"AB28","v":27},{"$f":"AA28","v":2},null,null,{"$f":"AE28","v":"SL Malinga"},null,{"$f":"AF28&\" wickets\"","v":"2 wickets"}]
[null,null,{"$f":"IF(Data!P5=\"WON\",\"India won\",IF(Data!P5=\"LOST\",Data!G5&\" won\",\"Match tied\"))","v":"Match tied"},null,null,null,{"$f":"INDEX(Table1[Got out (Yes / No)],SUMIFS(Table1[Number],Table1[Match Date],valSelMatchDate,Table1[TopScore Order],G$34))","v":"y"},{"$f":"INDEX(Table1[Got out (Yes / No)],SUMIFS(Table1[Number],Table1[Match Date],valSelMatchDate,Table1[TopScore Order],H$34))","v":"n"},{"$f":"INDEX(Table1[Got out (Yes / No)],SUMIFS(Table1[Number],Table1[Match Date],valSelMatchDate,Table1[TopScore Order],I$34))","v":"y"},null,null,{"$f":"L38/L36","v":4.9000000000000004},{"$f":"M38/M36","v":6},4.5555555555555554,null,null,null,{"$f":"R39&\" (\"&U39&\" fours, \"&V39&\" sixes)\"","v":"103 (27 fours, 2 sixes)"}]
[null,null,{"$f":"IF(Data!P6=\"WON\",\"India won\",IF(Data!P6=\"LOST\",Data!G6&\" won\",\"Match tied\"))","v":"India won"},null,null,null,{"$f":"G36/G37","v":0.79508196721311475},{"$f":"H36/H37","v":1.1518987341772151},0.7142857142857143,null,null,{"$f":"TEXT(L40,\"0.0\")","v":"4.9"},{"$f":"TEXT(M40,\"0.0\")","v":"6.0"},"4.6"]
[null,null,{"$f":"IF(Data!P7=\"WON\",\"India won\",IF(Data!P7=\"LOST\",Data!G7&\" won\",\"Match tied\"))","v":"India won"},null,null,"Display",{"$f":"G36&IF(G40=\"n\",\"*\",\"\")&\" (\"&G37&\", \"&G38&\" fours\"&IF(G39>0,\", \"&G39&\" sixes\",\"\")&TEXT(G41,\" - 0% \")&\")\"","v":"97 (122, 9 fours - 80% )"},{"$f":"H36&IF(H40=\"n\",\"*\",\"\")&\" (\"&H37&\", \"&H38&\" fours\"&IF(H39>0,\", \"&H39&\" sixes\",\"\")&TEXT(H41,\" - 0% \")&\")\"","v":"91* (79, 8 fours, 2 sixes - 115% )"},"35 (49, 4 fours - 71% )"]
[null,null,{"$f":"IF(Data!P8=\"WON\",\"India won\",IF(Data!P8=\"LOST\",Data!G8&\" won\",\"Match tied\"))","v":"South Africa won"},null,null,null,{"$f":"UPPER(\" \"&J28&\" best batting & bowling performances\")","v":" SRI LANKA BEST BATTING & BOWLING PERFORMANCES"}]
[null,null,{"$f":"IF(Data!P9=\"WON\",\"India won\",IF(Data!P9=\"LOST\",Data!G9&\" won\",\"Match tied\"))","v":"India won"}]
[null,null,{"$f":"IF(Data!P10=\"WON\",\"India won\",IF(Data!P10=\"LOST\",Data!G10&\" won\",\"Match tied\"))","v":"India won"}]
[null,null,{"$f":"IF(Data!P11=\"WON\",\"India won\",IF(Data!P11=\"LOST\",Data!G11&\" won\",\"Match tied\"))","v":"India won"}]
[null,null,{"$f":"IF(Data!P12=\"WON\",\"India won\",IF(Data!P12=\"LOST\",Data!G12&\" won\",\"Match tied\"))","v":"India won"}]
[]
[]
[null,null,1]
[null,null,2]
[null,null,3]
[null,null,4]
[null,null,5]
[null,null,6]
[null,null,7]
[null,null,8]
[null,null,9]
[null,null,10]
[null,null,11]
[null,null,12]
[null,null,13]
[null,null,14]
[null,null,15]
[null,null,16]
[null,null,17]
[null,null,18]

{"sheet":"Flags","index":3,"n_rows":15,"n_cols":13,"rows_kept":15,"cut":false,"hidden":true,"merged":[]}
[null,null,null,null,"Flags",null,null,null,null,"Countries","Abbr"]
[null,null,null,null,null,null,null,null,null,"Australia","Aus","Selected Country",{"$f":"Calculations!J28","v":"Sri Lanka"}]
[null,null,null,null,null,null,null,null,null,"Pakistan","Pak","Flag Position",{"$f":"MATCH(M2,J2:J15,0)","v":4}]
[null,null,null,null,null,null,null,null,null,"New Zealand","NZ"]
[null,null,null,null,null,null,null,null,null,"Sri Lanka","SL"]
[null,null,null,null,null,null,null,null,null,"Zimbabwe","Zim"]
[null,null,null,null,null,null,null,null,null,"Canada","Can"]
[null,null,null,null,null,null,null,null,null,"Kenya","Ken"]
[null,null,null,null,null,null,null,null,null,"India","Ind"]
[null,null,null,null,null,null,null,null,null,"South Africa","RSA"]
[null,null,null,null,null,null,null,null,null,"England","Eng"]
[null,null,null,null,null,null,null,null,null,"West Indies","WI"]
[null,null,null,null,null,null,null,null,null,"Bangladesh","Ban"]
[null,null,null,null,null,null,null,null,null,"Ireland","Ire"]
[null,null,null,null,null,null,null,null,null,"Netherlands","Neth"]

{"sheet":"Best","index":4,"n_rows":22,"n_cols":13,"rows_kept":22,"cut":false,"hidden":true,"merged":[]}
[]
[null,{"$f":"Calculations!O5","v":"TM Dilshan (SL)"},{"$f":"Calculations!P5","v":500},null,null,null,{"$f":"Data!O162","v":"DPMD Jayawardene (SL)"},{"$f":"Data!Q162","v":8},null,{"$f":"Data!T162&\" & \"&Data!U162","v":"WU Tharanga & TM Dilshan"},{"$f":"Data!W162","v":282},{"$f":"K2&\" (\"&Data!X162&\")\"","v":"282 (268)"},{"$f":"\"for \"&Data!Z162&\" wkt vs. \"&VLOOKUP(Data!Y162,Flags!$J$2:$K$15,2,FALSE)","v":"for 1st wkt vs. Zim"}]
[null,{"$f":"Calculations!O6","v":"SR Tendulkar (Ind)"},{"$f":"Calculations!P6","v":482},null,null,null,{"$f":"Data!O163","v":"JH Kallis (SA)"},{"$f":"Data!Q163","v":6},null,{"$f":"Data!T163&\" & \"&Data!U163","v":"TM Dilshan & WU Tharanga"},{"$f":"Data!W163","v":231},{"$f":"K3&\" (\"&Data!X163&\")\"","v":"231 (237)"},{"$f":"\"for \"&Data!Z163&\" wkt vs. \"&VLOOKUP(Data!Y163,Flags!$J$2:$K$15,2,FALSE)","v":"for 1st wkt vs. Eng"}]
[null,{"$f":"Calculations!O7","v":"KC Sangakkara (SL)"},{"$f":"Calculations!P7","v":465},null,null,null,{"$f":"Data!O164","v":"RJ Peterson (SA)"},{"$f":"Data!Q164","v":6},null,{"$f":"Data!T164&\" & \"&Data!U164","v":"HM Amla & AB de Villiers"},{"$f":"Data!W164","v":221},{"$f":"K4&\" (\"&Data!X164&\")\"","v":"221 (176)"},{"$f":"\"for \"&Data!Z164&\" wkt vs. \"&VLOOKUP(Data!Y164,Flags!$J$2:$K$15,2,FALSE)","v":"for 3rd wkt vs. Neth"}]
[null,{"$f":"Calculations!O8","v":"IJL Trott (Eng)"},{"$f":"Calculations!P8","v":422},null,null,null,{"$f":"Data!O165","v":"KA Pollard (WI)"},{"$f":"Data!Q165","v":6},null,{"$f":"Data!T165&\" & \"&Data!U165","v":"V Sehwag & V Kohli"},{"$f":"Data!W165","v":203},{"$f":"K5&\" (\"&Data!X165&\")\"","v":"203 (145)"},{"$f":"\"for \"&Data!Z165&\" wkt vs. \"&VLOOKUP(Data!Y165,Flags!$J$2:$K$15,2,FALSE)","v":"for 3rd wkt vs. Ban"}]
[null,{"$f":"Calculations!O9","v":"WU Tharanga (SL)"},{"$f":"Calculations!P9","v":395},null,null,null,{"$f":"Data!O166","v":"TM Dilshan (SL)"},{"$f":"Data!Q166","v":6},null,{"$f":"Data!T166&\" & \"&Data!U166","v":"BJ Haddin & SR Watson"},{"$f":"Data!W166","v":183},{"$f":"K6&\" (\"&Data!X166&\")\"","v":"183 (173)"},{"$f":"\"for \"&Data!Z166&\" wkt vs. \"&VLOOKUP(Data!Y166,Flags!$J$2:$K$15,2,FALSE)","v":"for 1st wkt vs. Can"}]
[null,{"$f":"Calculations!O10","v":"G Gambhir (Ind)"},{"$f":"Calculations!P10","v":393},null,null,null,{"$f":"Data!O167","v":"JM Davison (Can)"},{"$f":"Data!Q167","v":5},null,{"$f":"Data!T167&\" & \"&Data!U167","v":"CR Ervine & T Taibu"},{"$f":"Data!W167","v":181},{"$f":"K7&\" (\"&Data!X167&\")\"","v":"181 (167)"},{"$f":"\"for \"&Data!Z167&\" wkt vs. \"&VLOOKUP(Data!Y167,Flags!$J$2:$K$15,2,FALSE)","v":"for 3rd wkt vs. Can"}]
[null,{"$f":"Calculations!O11","v":"V Sehwag (Ind)"},{"$f":"Calculations!P11","v":380},null,null,null,{"$f":"Data!O168","v":"AN Kervezee (Neth)"},{"$f":"Data!Q168","v":5},null,{"$f":"Data!T168&\" & \"&Data!U168","v":"KC Sangakkara & DPMD Jayawardene"},{"$f":"Data!W168","v":179},{"$f":"K8&\" (\"&Data!X168&\")\"","v":"179 (137)"},{"$f":"\"for \"&Data!Z168&\" wkt vs. \"&VLOOKUP(Data!Y168,Flags!$J$2:$K$15,2,FALSE)","v":"for 3rd wkt vs. Can"}]
[null,{"$f":"Calculations!O12","v":"Yuvraj Singh (Ind)"},{"$f":"Calculations!P12","v":362},null,null,null,{"$f":"Data!O169","v":"JDP Oram (NZ)"},{"$f":"Data!Q169","v":5},null,{"$f":"Data!T169&\" & \"&Data!U169","v":"WTS Porterfield & PR Stirling"},{"$f":"Data!W169","v":177},{"$f":"K9&\" (\"&Data!X169&\")\"","v":"177 (162)"},{"$f":"\"for \"&Data!Z169&\" wkt vs. \"&VLOOKUP(Data!Y169,Flags!$J$2:$K$15,2,FALSE)","v":"for 1st wkt vs. Neth"}]
[null,{"$f":"Calculations!O13","v":"AB de Villiers (RSA)"},{"$f":"Calculations!P13","v":353},null,null,null,{"$f":"Data!O170","v":"GC Smith (SA)"},{"$f":"Data!Q170","v":5},null,{"$f":"Data!T170&\" & \"&Data!U170","v":"IR Bell & AJ Strauss"},{"$f":"Data!W170","v":170},{"$f":"K10&\" (\"&Data!X170&\")\"","v":"170 (156)"},{"$f":"\"for \"&Data!Z170&\" wkt vs. \"&VLOOKUP(Data!Y170,Flags!$J$2:$K$15,2,FALSE)","v":"for 3rd wkt vs. Ind"}]
[null,{"$f":"Calculations!O14","v":"AJ Strauss (Eng)"},{"$f":"Calculations!P14","v":334},null,null,null,{"$f":"Data!O171","v":"Shahid Afridi (Pak)"},{"$f":"Data!Q171","v":5},null,{"$f":"Data!T171&\" & \"&Data!U171","v":"IR Bell & IJL Trott"},{"$f":"Data!W171","v":167},{"$f":"K11&\" (\"&Data!X171&\")\"","v":"167 (156)"},{"$f":"\"for \"&Data!Z171&\" wkt vs. \"&VLOOKUP(Data!Y171,Flags!$J$2:$K$15,2,FALSE)","v":"for 3rd wkt vs. Ire"}]
[]
[null,{"$f":"Calculations!R5","v":"Shahid Afridi (Pak)"},{"$f":"Calculations!S5","v":21},null,null,{"$f":"Calculations!T5","v":"21 wkts/74.3 ovrs"}]
[null,{"$f":"Calculations!R6","v":"Z Khan (Ind)"},{"$f":"Calculations!S6","v":21},null,null,{"$f":"Calculations!T6","v":"21/81.3"}]
[null,{"$f":"Calculations!R7","v":"TG Southee (NZ)"},{"$f":"Calculations!S7","v":18},null,null,{"$f":"Calculations!T7","v":"18/72.2"}]
[null,{"$f":"Calculations!R8","v":"RJ Peterson (RSA)"},{"$f":"Calculations!S8","v":15},null,null,{"$f":"Calculations!T8","v":"15/56"}]
[null,{"$f":"Calculations!R9","v":"M Muralitharan (SL)"},{"$f":"Calculations!S9","v":15},null,null,{"$f":"Calculations!T9","v":"15/71"}]
[null,{"$f":"Calculations!R10","v":"Yuvraj Singh (Ind)"},{"$f":"Calculations!S10","v":15},null,null,{"$f":"Calculations!T10","v":"15/75"}]
[null,{"$f":"Calculations!R11","v":"Imran Tahir (RSA)"},{"$f":"Calculations!S11","v":14},null,null,{"$f":"Calculations!T11","v":"14/39.3"}]
[null,{"$f":"Calculations!R12","v":"Umar Gul (Pak)"},{"$f":"Calculations!S12","v":14},null,null,{"$f":"Calculations!T12","v":"14/60.3"}]
[null,{"$f":"Calculations!R13","v":"KAJ Roach (WI)"},{"$f":"Calculations!S13","v":13},null,null,{"$f":"Calculations!T13","v":"13/46"}]
[null,{"$f":"Calculations!R14","v":"B Lee (Aus)"},{"$f":"Calculations!S14","v":13},null,null,{"$f":"Calculations!T14","v":"13/54.2"}]

{"sheet":"Players","index":5,"n_rows":14,"n_cols":7,"rows_kept":14,"cut":false,"hidden":true,"merged":[]}
[null,"Pic","Player","Batting 3","Bowling 3","Batting 3 loc","Bowling 3 loc"]
[null,null,"MS Dhoni (c/wk)",null,null,{"$f":"MATCH(Calculations!G35,Players!$C$2:$C$14,0)","v":5},{"$f":"MATCH(Calculations!L35,Players!$C$2:$C$14,0)","v":3}]
[null,null,"Sachin Tendulkar",null,null,{"$f":"MATCH(Calculations!H35,Players!$C$2:$C$14,0)","v":1},{"$f":"MATCH(Calculations!M35,Players!$C$2:$C$14,0)","v":7}]
[null,null,"Yuvraj Singh",null,null,{"$f":"MATCH(Calculations!I35,Players!$C$2:$C$14,0)","v":8},{"$f":"MATCH(Calculations!N35,Players!$C$2:$C$14,0)","v":12}]
[null,null,"Virender Sehwag (vc)"]
[null,null,"Gautam Gambhir"]
[null,null,"Harbhajan Singh"]
[null,null,"Zaheer Khan"]
[null,null,"Virat Kohli"]
[null,null,"Ashish Nehra"]
[null,null,"Suresh Raina"]
[null,null,"Piyush Chawla"]
[null,null,"Munaf Patel"]
[null,null,"Ravichandran Ashwin"]